bitfinex/quotes_ETHUSD_20260227
["timestamp","ask_amount","ask_price","bid_price","bid_amount"]
[1772213950677,1.29924124,1924.2,1923.3,2.37884828]
[1772213951603,1.29924124,1924.2,1923.3,1.29984828]
[1772213951775,0.4945651,1924.0,1923.0,0.00153886]
[1772213951955,1.5995651,1923.9,1923.0,0.00153886]
[1772213952301,0.4945651,1923.7,1923.0,0.00153886]
[1772213952786,1.29964649,1923.6,1923.0,0.00153886]
[1772213953371,1.29937629,1924.0,1923.0,0.00153886]
[1772213954180,1.79394139,1924.0,1923.0,0.00153886]
[1772213954360,0.4945651,1923.9,1923.0,0.00153886]
[1772213954681,2.95768857,1923.8,1923.0,0.00153886]
[1772213954859,2.40457893,1923.7,1923.0,0.00153886]
[1772213955198,1.29957893,1923.7,1923.0,0.00153886]
[1772213955358,2.40457893,1923.7,1923.0,0.00153886]
[1772213955663,2.46312347,1923.5,1923.0,0.00153886]
[1772213955858,0.4945651,1923.6,1923.0,0.00153886]
[1772213956064,1.105,1923.5,1923.0,0.00153886]
[1772213957085,1.29978163,1923.4,1923.0,0.00153886]
[1772213957787,2.40478163,1923.4,1923.0,0.00153886]
[1772213957988,2.46412347,1923.8,1923.0,0.00153886]
[1772213957989,0.001,1923.8,1923.0,0.00153886]
[1772213958206,1.299613,1923.7,1923.0,0.00153886]
[1772213959193,2.95768857,1923.6,1923.0,0.00153886]
[1772213959587,1.105,1923.5,1923.0,0.00153886]
[1772213959969,1.5995651,1923.5,1922.5,1.30149011]
[1772213961918,1.29978163,1923.4,1922.5,1.30149011]
[1772213963391,2.40378163,1923.4,1922.5,1.79171565]
[1772213963596,2.40378163,1923.4,1922.6,0.49022554]
[1772213964368,1.103,1923.6,1922.7,1.30025484]
[1772213965871,1.103,1923.5,1922.7,1.30025484]
[1772213966472,5.19907888,1923.8,1922.8,0.49022554]
[1772213966982,6.30107888,1923.8,1922.8,0.49022554]
[1772213967295,1.30051138,1923.8,1922.8,0.49022554]
[1772213967871,0.001,1923.8,1923.1,0.49022554]
[1772213968791,0.4955651,1923.8,1922.8,6.26973175]
[1772213968990,0.4955651,1923.8,1922.8,6.76105729]
[1772213969377,0.4955651,1923.8,1922.9,0.49022554]
[1772213969687,0.4955651,1923.8,1922.8,6.27083175]
[1772213969688,0.00153886,1924.0,1923.2,0.49022554]
[1772213969891,0.001,1923.6,1923.2,0.49022554]
[1772213970678,0.001,1923.6,1923.3,1.29984921]
[1772213971002,0.001,1923.6,1923.3,1.79007475]
[1772213971325,0.001,1923.6,1923.3,1.29984921]
[1772213971625,0.001,1923.6,1923.1,1.29993411]
[1772213971913,0.001,1923.6,1922.9,5.20032522]
[1772213972216,0.001,1923.6,1922.9,1.30011961]
[1772213972377,0.001,1923.6,1922.8,6.27065216]
[1772213972378,2.46312347,1923.5,1922.8,1.0701]
[1772213972976,1.29978163,1923.4,1922.8,0.0011]
[1772213973623,1.1,1923.3,1922.8,0.0011]
[1772213973822,2.46312347,1923.2,1922.8,0.0011]
[1772213974345,1.5945651,1923.3,1922.8,0.0011]
[1772213974625,0.4945651,1923.3,1922.8,0.0011]
[1772213974798,1.101,1923.2,1922.8,0.0011]
[1772213974999,1.2999844,1923.1,1922.8,0.0011]
[1772213975228,6.3009148,1923.2,1922.8,0.0011]
[1772213975229,1.102,1923.2,1922.8,0.0011]
[1772213975427,5.19946646,1923.3,1922.8,0.0011]
[1772213975632,1.102,1923.2,1922.8,0.0011]
[1772213975929,1.29984921,1923.3,1922.8,0.0011]
[1772213977426,0.4945651,1923.2,1922.8,0.0011]
[1772213977808,10.1266438,1923.6,1922.8,0.0011]
[1772213977809,1.30095043,1924.0,1923.0,0.49022554]
[1772213978006,5.20039686,1923.7,1923.0,0.49022554]
[1772213978210,1.108,1923.6,1923.0,0.49022554]
[1772213979221,6.30839686,1923.6,1923.1,1.2999844]
[1772213980519,5.20039686,1923.5,1923.1,1.2999844]
[1772213981423,5.20039686,1923.5,1922.8,5.20183331]
[1772213981621,6.50011556,1923.5,1922.8,5.20183331]
[1772213981849,6.5001152,1923.5,1922.8,5.20183331]
[1772213982554,5.20039686,1923.5,1922.8,5.20183331]
[1772213982852,5.20039686,1923.5,1922.9,0.0011]
[1772213983351,6.50011579,1923.5,1922.9,0.0011]
[1772213984349,1.11,1923.4,1922.9,0.0011]
[1772213984849,5.20039686,1923.3,1922.9,0.0011]
[1772213985051,1.111,1923.2,1922.9,0.0011]
[1772213985251,0.001,1923.7,1923.0,0.46062525]
[1772213985451,1.111,1923.5,1922.9,0.0011]
[1772213985654,5.20039686,1923.4,1922.9,0.0011]
[1772213985835,0.49679579,1923.2,1922.5,0.0011]
[1772213986034,1.114,1923.1,1922.4,0.0011]
[1772213986333,1.61079579,1923.1,1922.4,0.0011]
[1772213986653,0.49679579,1923.1,1922.4,1.30154621]
[1772213986852,1.114,1923.0,1922.4,0.0011]
[1772213987263,1.114,1923.0,1922.4,1.30154477]
[1772213987468,2.46312347,1923.3,1922.6,1.30032247]
[1772213987469,6.31339686,1922.9,1922.6,1.30032247]
[1772213987640,1.113,1923.0,1922.6,1.30032247]
[1772213987838,1.114,1922.9,1922.6,1.30032247]
[1772213988043,1.114,1923.1,1922.6,1.76094772]
[1772213988364,6.31439686,1923.1,1922.6,1.30032247]
[1772213988534,5.20039686,1923.0,1922.6,1.30032247]
[1772213989148,1.114,1923.1,1922.6,1.76094772]
[1772213989465,6.31439686,1923.1,1922.6,1.76094772]
[1772213989652,1.114,1923.1,1922.7,0.46062525]
[1772213990056,6.31439686,1923.1,1922.6,1.30032247]
[1772213990857,1.29968947,1923.6,1922.6,1.76094772]
[1772213991052,5.20039686,1923.5,1922.7,0.46062525]
[1772213991265,1.113,1923.4,1922.7,0.46062525]
[1772213991774,5.20039686,1923.3,1922.8,1.30018722]
[1772213992663,5.20039686,1923.3,1922.5,5.20151763]
[1772213992664,5.20039686,1923.2,1922.5,1.30032247]
[1772213993079,5.20039686,1923.1,1922.5,1.30032247]
[1772213993259,1.114,1923.0,1922.5,1.30032247]
[1772213993876,5.20039686,1923.3,1922.5,1.76094772]
[1772213994078,6.31439686,1923.2,1922.5,1.76094772]
[1772213994285,5.20039686,1923.4,1922.6,0.46062525]
[1772213994457,1.114,1923.3,1922.6,0.46062525]
[1772213995570,5.20039686,1923.4,1922.6,0.46062525]
[1772213995779,5.20039686,1923.3,1922.7,1.76088009]
[1772213996261,1.114,1923.4,1922.7,1.76198009]
[1772213996577,0.001,1923.2,1922.7,1.76198009]
[1772213996781,0.001,1923.2,1922.7,1.30135484]
[1772213997773,0.001,1923.2,1922.7,0.0011]
[1772214001274,0.49779579,1923.2,1922.7,0.0011]
[1772214001478,1.112,1923.1,1922.7,0.0011]
[1772214001862,0.001,1923.2,1922.7,0.0011]
[1772214001863,1.112,1923.0,1922.7,0.0011]
[1772214002064,1.112,1923.6,1922.7,0.46172525]
[1772214002270,0.00153886,1924.0,1922.7,0.46172525]
[1772214002271,1.30094538,1924.0,1922.7,3.4463854]
[1772214002575,1.60879579,1923.9,1922.8,0.46062525]
[1772214003209,1.112,1923.8,1922.8,0.46062525]
[1772214003387,1.112,1923.7,1922.8,0.46062525]
[1772214003973,2.41159748,1923.7,1922.9,1.30011961]
[1772214004376,2.90839327,1923.7,1922.9,1.30011961]
[1772214005165,2.90839327,1923.7,1922.8,5.20047844]
[1772214005166,0.49679579,1923.6,1922.8,1.30014446]
[1772214005990,2.41071406,1923.5,1922.8,1.30014446]
[1772214006587,1.111,1923.4,1922.8,1.76076971]
[1772214007276,5.19833584,1923.7,1922.8,1.76076971]
[1772214007483,1.111,1923.6,1922.8,1.76076971]
[1772214007864,1.29957893,1923.7,1922.8,1.76076971]
[1772214008061,1.111,1923.6,1922.8,1.76076971]
[1772214009076,1.60779579,1923.6,1922.8,1.30014446]
[1772214009268,0.49679579,1923.5,1922.8,1.30014446]
[1772214009467,0.49679579,1923.5,1922.9,0.0011]
[1772214010072,1.29978163,1923.4,1922.9,0.0011]
[1772214010283,2.41078163,1923.4,1922.9,0.0011]
[1772214010788,0.46914881,1923.3,1922.9,0.0011]
[1772214012380,1.113,1923.2,1922.9,0.0011]
[1772214012589,1.114,1923.3,1922.9,0.0011]
[1772214015361,2.88304948,1923.3,1922.8,0.0011]
[1772214016780,0.46914881,1923.2,1922.7,0.0011]
[1772214017892,1.29990067,1923.3,1922.7,0.0011]
[1772214018222,1.116,1923.2,1922.7,0.0011]
[1772214019364,1.117,1923.1,1922.7,0.0011]
[1772214019881,2.95402545,1923.8,1922.7,0.48074399]
[1772214020081,0.46914881,1923.5,1922.7,0.48074399]
[1772214020283,0.46914881,1923.5,1922.7,0.0011]
[1772214021393,0.46914881,1923.3,1922.7,0.0011]
[1772214021618,1.117,1923.2,1922.7,0.0011]
[1772214022094,1.29978163,1923.4,1922.7,0.0011]
[1772214022095,1.117,1923.4,1922.8,0.47964399]
[1772214022300,1.117,1923.4,1922.7,0.0011]
[1772214022599,1.58614881,1923.4,1922.7,0.0011]
[1772214023172,1.58614881,1923.4,1922.9,0.0011]
[1772214023373,1.29984921,1923.3,1922.9,0.0011]
[1772214024500,1.29984921,1923.3,1922.4,0.0011]
[1772214024501,3.91443421,1922.9,1922.4,0.0011]
[1772214024795,1.58814881,1922.8,1922.4,0.0011]
[1772214025584,1.30025484,1922.7,1922.4,0.0011]
[1772214025773,1.76940365,1922.7,1922.2,0.0011]
[1772214026414,0.46914881,1922.6,1922.2,0.0011]
[1772214027998,1.76952122,1922.6,1922.2,0.0011]
[1772214029176,1.76952122,1922.6,1922.0,0.00263886]
[1772214029177,1.59314881,1922.5,1922.0,0.00263886]
[1772214029685,1.124,1922.4,1922.0,0.00263886]
[1772214031811,1.76948753,1922.6,1922.0,0.00263886]
[1772214032007,0.46914881,1922.9,1922.0,0.48228285]
[1772214032307,5.2645307,1923.5,1922.0,0.48228285]
[1772214032308,0.46914881,1923.2,1922.2,0.47964399]
[1772214032604,1.124,1923.1,1922.2,0.47964399]
[1772214032804,1.76889769,1923.5,1922.2,0.47964399]
[1772214033006,1.124,1923.4,1922.5,2.323668]
[1772214033190,1.124,1923.6,1922.6,0.47964399]
[1772214033507,0.47014881,1923.8,1922.8,0.47964399]
[1772214033508,0.001,1923.8,1922.8,0.47964399]
[1772214033709,1.30051279,1923.8,1922.8,0.47964399]
[1772214034479,0.47014881,1923.8,1922.9,1.30011961]
[1772214035893,0.001,1923.5,1923.0,0.47964399]
[1772214036093,1.124,1923.8,1923.0,0.47964399]
[1772214036094,0.934,1923.8,1923.1,0.47964399]
[1772214036286,0.001,1923.8,1923.1,0.47964399]
[1772214036497,0.001,1923.8,1923.5,0.47964399]
[1772214036997,1.01253886,1924.0,1923.5,0.47964399]
[1772214037198,0.00153886,1924.0,1923.5,0.47964399]
[1772214038685,0.00153886,1924.0,1923.6,1.29964649]
[1772214039013,0.00153886,1924.0,1923.6,1.78122922]
[1772214039216,0.00153886,1924.0,1923.7,0.48158273]
[1772214040419,0.00153886,1924.0,1923.6,1.29964649]
[1772214040635,0.00153886,1924.0,1923.5,1.29966134]
[1772214040790,2.42095093,1924.0,1923.2,1.2999168]
[1772214041429,1.30095093,1924.0,1923.2,1.76048266]
[1772214041633,1.12,1923.9,1923.3,0.46056586]
[1772214042133,0.00153886,1924.0,1923.3,0.46056586]
[1772214042134,1.12153886,1924.0,1923.3,0.46056586]
[1772214042891,1.12153886,1924.0,1923.4,1.29978163]
[1772214043719,2.42092185,1924.0,1923.4,1.29978163]
[1772214043915,1.12153886,1924.0,1923.4,1.29978163]
[1772214044215,1.12153886,1924.0,1922.9,0.46056586]
[1772214044216,2.87417555,1924.0,1922.9,0.46056586]
[1772214044405,2.87417555,1924.0,1922.9,1.76068547]
[1772214044611,2.87417555,1924.0,1923.0,0.46056586]
[1772214045009,1.75417555,1924.0,1923.1,1.2999844]
[1772214045203,1.12,1923.9,1923.1,1.2999844]
[1772214045805,1.119,1923.8,1923.1,1.2999844]
[1772214047425,2.87175866,1923.8,1923.1,1.2999844]
[1772214048098,0.45323382,1923.8,1923.1,1.2999844]
[1772214048314,1.119,1923.7,1923.1,1.2999844]
[1772214048513,1.119,1923.7,1923.2,0.46056586]
[1772214048907,0.001,1923.9,1923.2,0.46056586]
[1772214049096,0.00153886,1924.0,1923.4,0.46056586]
[1772214049297,0.00153886,1924.0,1923.6,0.46056586]
[1772214050432,0.00153886,1924.0,1923.5,1.29971406]
[1772214050636,1.11953886,1924.0,1923.5,1.29971406]
[1772214051530,0.00153886,1924.0,1923.4,5.65942211]
[1772214052322,1.30091893,1924.0,1923.2,1.2999168]
[1772214052931,1.75415275,1924.0,1923.2,1.2999168]
[1772214053129,1.30091893,1924.0,1923.2,1.2999168]
[1772214053310,1.75269456,1923.9,1923.2,1.2999168]
[1772214053513,0.45323382,1923.9,1923.2,1.2999168]
[1772214053808,1.75268227,1923.9,1923.1,1.29993147]
[1772214054408,0.45323382,1923.8,1923.1,1.29993147]
[1772214054634,1.117,1923.7,1923.1,1.29993147]
[1772214055034,1.117,1923.9,1923.1,4.21859612]
[1772214055540,2.416473,1923.9,1923.1,1.76049733]
[1772214056145,1.117,1923.9,1923.1,1.76049733]
[1772214058140,2.41644972,1923.9,1923.1,1.76049733]
[1772214058344,0.45323382,1923.8,1923.1,1.29993147]
[1772214058843,1.116,1923.7,1923.1,1.29993147]
[1772214059045,0.45323382,1923.6,1922.9,5.20036407]
[1772214059839,4.28439765,1923.9,1922.9,5.66092993]
[1772214060045,1.115,1923.8,1922.9,5.66092993]
[1772214060541,0.45323382,1923.7,1922.9,5.66092993]
[1772214060749,0.45323382,1923.7,1922.9,5.20036407]
[1772214061648,2.53171411,1923.9,1923.0,0.46166586]
[1772214061834,0.001,1923.8,1923.0,0.46166586]
[1772214062538,1.75281275,1923.7,1923.0,0.0011]
[1772214062946,0.45323382,1923.7,1923.0,0.0011]
[1772214063451,0.45323382,1923.6,1923.0,0.0011]
[1772214063657,0.45323382,1923.2,1922.7,0.0011]
[1772214063823,0.45323382,1923.0,1922.3,1.301619]
[1772214064651,0.45323382,1922.8,1922.3,0.0011]
[1772214066633,1.115,1922.7,1922.3,0.0011]
[1772214066843,1.115,1922.7,1922.2,0.0011]
[1772214066844,2.91133261,1922.6,1922.2,0.0011]
[1772214067052,0.45323382,1922.6,1922.2,0.0011]
[1772214067846,1.116,1922.5,1922.2,0.0011]
[1772214068720,1.116,1922.4,1922.2,0.0011]
[1772214069325,0.45323382,1922.6,1922.2,0.0011]
[1772214069647,1.116,1922.5,1922.2,0.0011]
[1772214070350,1.75284454,1922.9,1922.2,0.0011]
[1772214070648,1.116,1922.6,1922.2,0.0011]
[1772214072150,1.75284429,1922.9,1922.2,0.0011]
[1772214072354,1.116,1922.6,1922.2,0.0011]
[1772214073047,1.116,1922.6,1922.2,0.45738673]
[1772214073733,1.116,1922.6,1922.2,0.0011]
[1772214073933,0.45267064,1922.5,1922.2,0.0011]
[1772214075074,1.75312453,1922.5,1922.2,0.0011]
[1772214075274,0.45267064,1922.5,1922.2,0.0011]
[1772214075487,1.75306145,1922.5,1922.2,0.0011]
[1772214075870,0.45267064,1922.5,1922.2,0.0011]
[1772214076040,0.45267064,1922.4,1922.2,0.0011]
[1772214076972,0.45267064,1922.4,1922.0,0.00263886]
[1772214077170,1.75322875,1922.3,1921.5,5.20372586]
[1772214077344,1.12,1922.2,1921.5,5.20372586]
[1772214078163,1.57267064,1922.2,1921.5,5.20372586]
[1772214079274,1.57267064,1922.2,1921.4,1.30106687]
[1772214079666,1.57267064,1922.2,1921.4,1.7573536]
[1772214079957,1.12,1922.1,1921.4,1.7573536]
[1772214081261,2.42068569,1922.1,1921.4,1.7573536]
[1772214081456,1.12,1922.1,1921.4,1.7573536]
[1772214082387,5.26521143,1923.2,1921.5,0.45628673]
[1772214082388,0.45267064,1922.5,1921.5,0.45628673]
[1772214082587,1.12,1922.5,1921.7,0.45628673]
[1772214083244,1.12,1922.5,1921.8,1.7571505]
[1772214083879,2.42040234,1922.5,1921.8,1.7571505]
[1772214084048,2.42040234,1922.5,1921.8,1.30086377]
[1772214084049,0.45267064,1922.4,1921.8,1.30086377]
[1772214085280,1.119,1922.4,1921.8,1.7571505]
[1772214085671,2.87193441,1922.7,1921.9,0.45628673]
[1772214086263,0.001,1922.1,1921.9,0.45628673]
[1772214087275,1.75292861,1922.7,1921.9,0.45628673]
[1772214087484,1.75292861,1922.7,1922.0,1.3007284]
[1772214088394,0.45267064,1922.6,1922.0,1.3007284]
[1772214089697,0.45267064,1922.6,1921.9,5.20291363]
[1772214089864,0.45267064,1922.6,1921.9,5.7112322]
[1772214091178,0.45267064,1922.5,1921.9,5.25494547]
[1772214091381,0.45267064,1922.5,1921.9,5.20291363]
[1772214092267,0.45267064,1922.5,1921.7,5.20341354]
[1772214094277,0.45267064,1922.3,1921.5,0.0011]
[1772214094982,1.56967064,1922.3,1921.5,0.45738673]
[1772214095292,0.45267064,1922.3,1921.6,1.095]
[1772214095504,0.45267064,1922.3,1921.6,1.55128673]
[1772214095703,0.45267064,1922.3,1921.6,1.095]
[1772214096556,0.45267064,1922.3,1921.7,1.30093146]
[1772214096980,1.75320009,1922.3,1921.7,1.30093146]
[1772214097479,0.45267064,1922.2,1921.5,1.30211391]
[1772214097865,0.45267064,1922.2,1921.5,0.0011]
[1772214098182,3.75862824,1922.3,1921.5,0.0011]
[1772214098183,0.45267064,1922.0,1921.5,0.0011]
[1772214098367,0.45267064,1921.9,1921.5,1.30216386]
[1772214098562,1.75347567,1921.9,1921.5,0.0011]
[1772214098974,1.75346672,1921.9,1921.8,0.0011]
[1772214100584,0.45527027,1921.8,1921.5,0.0011]
[1772214101684,0.45527027,1921.7,1921.2,0.0011]
[1772214101902,3.89481596,1921.9,1921.2,0.0011]
[1772214101903,0.45527027,1921.5,1921.2,0.0011]
[1772214102668,1.30113458,1921.4,1921.0,0.00153886]
[1772214102860,2.45809879,1921.2,1920.7,0.0011]
[1772214103061,0.45527027,1921.3,1920.7,1.30270155]
[1772214103266,1.122,1921.2,1920.7,1.30270155]
[1772214103462,0.45527027,1921.3,1920.7,1.30270155]
[1772214103463,1.122,1921.1,1920.7,1.30270155]
[1772214104396,0.45527027,1921.3,1920.7,1.30270155]
[1772214104567,1.75647853,1921.3,1920.7,0.0011]
[1772214104768,0.45527027,1921.2,1920.7,0.0011]
[1772214104974,0.45527027,1921.1,1920.7,0.0011]
[1772214105196,1.57727027,1921.0,1920.7,0.0011]
[1772214105985,0.45527027,1920.9,1920.5,0.0011]
[1772214106376,0.45527027,1920.7,1920.0,0.00153886]
[1772214106593,1.75706055,1920.5,1920.0,0.00153886]
[1772214106893,1.7570182,1920.5,1920.0,0.00153886]
[1772214107194,2.8790182,1920.5,1920.0,0.00153886]
[1772214107395,0.45527027,1920.5,1920.0,0.00153886]
[1772214107607,0.45527027,1920.6,1919.8,5.20877616]
[1772214107891,0.45527027,1920.6,1919.3,5.66682047]
[1772214107892,0.45527027,1920.3,1919.3,5.66682047]
[1772214108095,0.45527027,1920.2,1919.3,5.66682047]
[1772214108281,4.91619758,1920.6,1919.5,0.45659214]
[1772214108282,0.45527027,1920.5,1919.5,0.45659214]
[1772214108688,1.75703568,1920.5,1919.6,1.75894679]
[1772214109084,0.45527027,1920.5,1919.7,0.45659214]
[1772214109374,1.57727027,1920.8,1919.9,0.45659214]
[1772214109796,1.122,1920.8,1919.9,0.45659214]
[1772214110370,0.45527027,1920.7,1919.9,0.45659214]
[1772214110769,1.30147326,1920.9,1920.1,0.45659214]
[1772214111186,1.75674353,1920.9,1920.1,0.45659214]
[1772214111392,0.45527027,1920.8,1920.0,1.30208333]
[1772214111598,0.45527027,1920.8,1920.0,1.75867547]
[1772214111782,0.00153886,1921.0,1920.1,0.45659214]
[1772214111983,0.00153886,1921.0,1920.2,0.45659214]
[1772214112805,0.00153886,1921.0,1920.4,0.45659214]
[1772214113107,0.00153886,1921.0,1920.5,1.093]
[1772214115718,0.00153886,1921.0,1920.5,1.30174433]
[1772214116008,0.00153886,1921.0,1920.5,2.39574433]
[1772214117106,0.00153886,1921.0,1920.5,1.30174433]
[1772214117306,0.00153886,1921.0,1920.5,2.39674433]
[1772214117511,0.00153886,1921.0,1920.5,1.30174433]
[1772214117711,0.00153886,1921.0,1920.5,2.39774433]
[1772214117882,0.00153886,1921.0,1920.6,0.45659214]
[1772214118218,6.7816435,1921.5,1920.6,0.45659214]
[1772214118219,1.75617531,1921.8,1920.7,0.45659214]
[1772214118393,0.45527027,1921.6,1920.6,0.45659214]
[1772214119701,0.45527027,1921.4,1920.7,1.30160878]
[1772214119880,0.45527027,1921.4,1920.8,1.097]
[1772214120521,1.30106687,1921.5,1920.8,1.097]
[1772214121320,1.30086377,1921.8,1920.9,0.45659214]
[1772214121807,1.30086377,1921.8,1921.0,1.75799765]
[1772214122514,1.75613404,1921.8,1921.0,1.75799765]
[1772214123895,1.30086377,1921.8,1921.1,0.45659214]
[1772214124099,0.001,1922.4,1921.8,0.45659214]
[1772214124394,0.001,1922.4,1921.9,0.45659214]
[1772214126111,0.001,1922.4,1922.0,1.3007284]
[1772214126886,0.001,1922.4,1921.8,2.39782076]
[1772214127314,1.116,1922.9,1921.8,1.097]
[1772214127505,0.00153886,1923.0,1922.3,0.45659214]
[1772214127694,1.75510121,1923.4,1922.4,0.844]
[1772214127898,0.45527027,1923.3,1922.4,0.844]
[1772214128219,0.45527027,1923.1,1922.4,1.30039413]
[1772214128426,0.45527027,1923.1,1922.3,2.39647217]
[1772214128602,0.45527027,1922.9,1922.0,1.75881178]
[1772214128796,0.45527027,1922.9,1922.0,1.30221964]
[1772214129020,5.19913199,1923.4,1922.0,1.30221964]
[1772214129021,5.19589476,1924.6,1922.8,3.45490738]
[1772214129329,5.1965234,1924.4,1923.3,0.45659214]
[1772214129528,5.6516875,1924.5,1923.4,1.55259214]
[1772214129696,0.45527027,1924.5,1923.4,1.55259214]
[1772214129897,1.30093585,1924.0,1923.1,1.55259214]
[1772214130096,0.00153886,1924.0,1923.1,1.55259214]
[1772214130432,0.00153886,1924.0,1923.2,1.2999168]
[1772214130593,0.48822511,1924.0,1923.2,1.2999168]
[1772214130833,0.48668625,1923.9,1923.1,1.29993585]
[1772214131518,0.48668625,1923.9,1922.9,5.20037466]
[1772214131689,0.48668625,1923.8,1922.9,5.20037466]
[1772214132216,0.48668625,1924.6,1923.5,0.46989304]
[1772214132525,0.48668625,1924.9,1923.7,0.46989304]
[1772214133094,0.00153886,1926.0,1924.9,0.46989304]
[1772214133295,0.00153886,1926.0,1923.9,0.46989304]
[1772214133521,0.00153886,1926.0,1924.7,0.46989304]
[1772214133522,5.24116049,1926.0,1924.7,0.46989304]
[1772214133717,0.48668625,1925.9,1924.7,0.46989304]
[1772214133933,0.48668625,1925.8,1924.5,0.843]
[1772214134103,0.48668625,1925.8,1924.6,0.46989304]
[1772214134298,0.48668625,1925.8,1924.7,1.29890372]
[1772214134299,1.29822921,1925.7,1924.7,1.29890372]
[1772214134512,0.48668625,1925.6,1924.6,2.39692542]
[1772214134697,0.48668625,1925.6,1924.4,5.19641549]
[1772214135199,3.94159363,1925.4,1924.4,1.29910621]
[1772214136099,0.48668625,1925.3,1924.4,1.29910621]
[1772214136516,1.78525263,1925.2,1924.1,6.29503754]
[1772214136827,0.00153886,1926.0,1925.2,0.46989304]
[1772214137029,0.00153886,1926.0,1924.8,3.45490738]
[1772214137030,0.00153886,1927.0,1926.0,0.46989304]
[1772214137195,0.00153886,1927.0,1925.4,6.90981476]
[1772214137196,2.53115795,1927.7,1926.2,0.46989304]
[1772214137395,2.53115795,1927.7,1926.5,0.46989304]
[1772214137595,0.48668625,1927.6,1926.2,1.108]
[1772214137891,3.82804434,1927.7,1926.0,0.00153886]
[1772214137892,0.48668625,1927.1,1926.0,0.00153886]
[1772214138317,3.45490738,1927.1,1926.0,0.00153886]
[1772214138520,3.94159363,1926.8,1926.0,0.00153886]
[1772214138893,0.48668625,1926.8,1926.0,0.00153886]
[1772214139300,2.42235339,1927.0,1926.0,0.00153886]
[1772214139495,0.48668625,1926.9,1926.0,0.00153886]
[1772214140703,1.29748806,1926.8,1926.0,0.00153886]
[1772214140897,1.29748806,1926.8,1925.4,1.29843149]
[1772214140898,3.94159363,1926.6,1925.4,1.29843149]
[1772214141123,3.45490738,1926.3,1925.4,1.29843149]
[1772214141322,1.124,1926.4,1925.4,1.29843149]
[1772214141527,1.61068625,1926.4,1925.3,1.29847272]
[1772214141805,3.45490738,1926.1,1925.1,1.29863383]
[1772214142599,1.36302406,1926.8,1925.0,6.3010742]
[1772214142600,0.48668625,1927.7,1926.3,0.46989304]
[1772214142826,0.48668625,1927.7,1927.0,3.020195]
[1772214143014,0.48668625,1927.7,1927.2,3.01865614]
[1772214143194,0.48668625,1927.7,1926.3,0.46989304]
[1772214143498,0.48668625,1927.5,1926.2,1.29789222]
[1772214144303,0.48668625,1927.5,1926.3,1.114]
[1772214144721,0.48668625,1927.5,1926.4,1.29775747]
[1772214144924,1.78374916,1927.5,1926.4,1.29775747]
[1772214145121,1.78371455,1927.5,1926.4,1.29775747]
[1772214145310,1.78371444,1927.5,1926.4,1.29775747]
[1772214145508,0.48668625,1927.4,1926.4,1.29775747]
[1772214146625,0.48668625,1927.4,1926.5,1.114]
[1772214146836,0.48668625,1927.4,1926.6,1.29762275]
[1772214147001,4.3147012,1927.8,1926.6,1.29762275]
[1772214147207,0.48668625,1927.7,1926.6,1.29762275]
[1772214148111,0.48668625,1927.6,1926.6,1.29762275]
[1772214148322,0.48668625,1927.5,1926.6,1.29762275]
[1772214148923,0.48768625,1927.3,1926.5,1.29768835]
[1772214149126,0.48768625,1927.3,1926.2,1.29789222]
[1772214149335,0.48768625,1927.3,1926.2,2.41189222]
[1772214149749,0.001,1927.3,1926.2,1.76778526]
[1772214149928,0.48768625,1927.3,1926.3,1.114]
[1772214150123,0.48768625,1927.3,1926.2,2.41189222]
[1772214150646,0.48768625,1927.3,1926.1,1.29904166]
[1772214150647,0.48668625,1927.1,1926.1,1.29904166]
[1772214150960,0.48668625,1926.9,1926.1,0.0011]
[1772214151114,0.48668625,1926.8,1926.0,0.00263886]
[1772214151318,3.7745802,1926.9,1925.8,1.29921908]
[1772214151319,0.48668625,1926.6,1925.8,0.0011]
[1772214151516,0.48668625,1926.6,1925.2,1.76844073]
[1772214151731,0.48668625,1926.6,1925.2,0.46989304]
[1772214151950,0.48668625,1926.6,1925.0,6.03820682]
[1772214151951,0.48668625,1926.2,1925.0,1.30023979]
[1772214152137,1.61568625,1926.1,1925.0,1.30023979]
[1772214152934,1.29802699,1926.0,1925.0,0.00153886]
[1772214154030,1.78471324,1926.0,1925.0,0.00153886]
[1772214154423,0.48668625,1925.9,1925.0,0.00153886]
[1772214154621,0.48668625,1925.9,1924.4,0.46989304]
[1772214154822,0.48668625,1925.7,1924.5,1.29900508]
[1772214155126,0.48668625,1925.4,1924.1,2.41230876]
[1772214155536,0.48668625,1925.2,1924.0,1.30090547]
[1772214155862,0.48668625,1925.0,1924.0,0.00153886]
[1772214156329,0.48668625,1925.0,1924.0,1.30091106]
[1772214157056,1.29876876,1924.9,1924.0,0.00153886]
[1772214158864,1.7821255,1924.9,1924.0,0.00153886]
[1772214159446,1.29876876,1924.9,1924.0,0.00153886]
[1772214159632,0.48335674,1924.8,1924.0,0.00153886]
[1772214160887,0.48335674,1924.8,1924.1,0.0011]
[1772214161035,1.78382511,1924.7,1924.1,0.0011]
[1772214161723,1.125,1924.6,1924.1,0.0011]
[1772214162860,0.48492139,1924.5,1923.8,0.0011]
[1772214163232,0.48492139,1924.3,1923.8,0.0011]
[1772214163428,0.48492139,1924.3,1923.0,0.00153886]
[1772214163760,0.48492139,1924.0,1922.7,1.76718704]
[1772214163942,1.60992139,1923.9,1922.7,1.76718704]
[1772214164635,4.3274522,1923.9,1922.7,1.76718704]
[1772214165442,1.29951138,1923.8,1922.7,1.76718704]
[1772214167161,1.78443277,1923.8,1922.7,2.87318704]
[1772214167354,1.29964649,1923.6,1922.7,2.87218704]
[1772214168232,1.29964649,1923.6,1922.8,0.46698959]
[1772214169465,0.00153886,1924.0,1923.0,0.46698959]
[1772214169641,3.44590714,1923.9,1923.0,1.57198959]
[1772214170044,0.00153886,1924.0,1923.0,1.57198959]
[1772214171142,0.00153886,1924.0,1923.1,0.46698959]
[1772214171442,0.00153886,1924.0,1923.2,1.2999168]
[1772214171766,1.12453886,1924.0,1923.1,1.76696161]
[1772214173244,3.5849902,1924.0,1923.1,1.76696161]
[1772214173763,1.29944383,1923.9,1923.1,1.76696161]
[1772214174141,1.30044383,1923.9,1923.1,1.76696161]
[1772214174370,1.30044383,1923.9,1923.2,0.46698959]
[1772214174673,3.76089517,1923.9,1923.0,2.40300285]
[1772214175244,3.76089517,1923.9,1923.0,2.40200285]
[1772214176342,3.76089517,1923.9,1922.9,0.46808959]
[1772214176546,2.46045134,1923.6,1922.9,1.76820315]
[1772214176746,2.46045134,1923.7,1922.9,1.76820407]
[1772214176947,2.46045134,1923.7,1922.9,1.76820309]
[1772214177265,2.46045134,1923.7,1922.9,1.3012135]